fUSD/lending_fUSD_20250208
["ID","MTS","AMOUNT","RATE_DAILY","PERIOD"]
[352281106,1739026254337,-856.9,0.00010273,2]
[352281107,1739026254346,-500.0,0.00010273,2]
[352281108,1739026254355,-2557.02,0.00010273,2]
[352281109,1739026254364,-500.0,0.00010273,2]
[352281110,1739026254375,-152.71820095,0.00010273,2]
[352281111,1739026254385,-500.0,0.00010273,2]
[352281112,1739026254394,-2691.93,0.00010273,2]
[352281113,1739026254403,-1075.04,0.00010273,2]
[352281114,1739026254412,-2127.64,0.00010273,2]
[352281115,1739026254422,-500.0,0.00010273,2]
[352281116,1739026254434,-1562.42,0.00010273,2]
[352281117,1739026254444,-500.0,0.00010273,2]
[352281118,1739026254455,-500.0,0.00010273,2]
[352281119,1739026254465,-500.0,0.00010273,2]
[352281120,1739026254475,-500.0,0.00010273,2]
[352281121,1739026254489,-500.0,0.00010273,2]
[352281122,1739026254499,-1254.87,0.00010273,2]
[352281123,1739026254510,-561.97,0.00010273,2]
[352281124,1739026254520,-379.60768837,0.00010273,2]
[352281125,1739026254530,-1365.08,0.00010273,2]
[352281126,1739026254540,-625.68,0.00010273,2]
[352281127,1739026254550,-500.0,0.00010273,2]
[352281128,1739026254559,-163.67677193,0.00010309,2]
[352281129,1739026254568,-500.0,0.00010383,2]
[352281130,1739026254579,-500.0,0.00010384,2]
[352281131,1739026254589,-500.0,0.00010384,2]
[352281132,1739026254598,-500.0,0.00010384,2]
[352281133,1739026254609,-1022.0,0.00010384,2]
[352281134,1739026254618,-500.0,0.00010384,2]
[352281135,1739026254628,-986.57,0.00010384,2]
[352281136,1739026254638,-500.0,0.00010384,2]
[352281137,1739026254647,-505.84,0.00010384,2]
[352281138,1739026254657,-500.0,0.00010384,2]
[352281139,1739026254666,-500.0,0.00010384,2]
[352281140,1739026254683,-500.0,0.00010384,2]
[352281141,1739026254692,-864.72,0.00010384,2]
[352281142,1739026254703,-500.0,0.00010384,2]
[352281143,1739026254712,-500.0,0.00010384,2]
[352281144,1739026254723,-500.0,0.00010384,2]
[352281145,1739026254732,-500.0,0.00010384,2]
[352281146,1739026254741,-578.86,0.00010384,2]
[352281147,1739026254751,-500.0,0.00010384,2]
[352281148,1739026254760,-555.84,0.00010384,2]
[352281149,1739026254770,-500.0,0.00010384,2]
[352281150,1739026254779,-500.0,0.00010409,2]
[352281151,1739026254792,-656.65,0.00010409,2]
[352281152,1739026254801,-925.49,0.00010409,2]
[352281153,1739026254811,-500.0,0.00010409,2]
[352281154,1739026254821,-774.68,0.00010409,2]
[352281155,1739026254831,-500.0,0.00010409,2]
[352281156,1739026254841,-500.0,0.00010409,2]
[352281157,1739026254850,-1122.18,0.00010409,2]
[352281158,1739026254861,-500.0,0.00010409,2]
[352281159,1739026254871,-598.25,0.00010409,2]
[352281160,1739026254881,-500.0,0.00010409,2]
[352281161,1739026254890,-953.88,0.00010409,2]
[352281162,1739026254899,-500.0,0.00010409,2]
[352281163,1739026254909,-500.0,0.00010409,2]
[352281164,1739026254918,-500.0,0.00010409,2]
[352281165,1739026254928,-500.0,0.00010409,2]
[352281166,1739026254939,-500.0,0.00010409,2]
[352281167,1739026254948,-500.0,0.00010409,2]
[352281168,1739026254957,-757.38,0.00010409,2]
[352281169,1739026254967,-500.0,0.00010409,2]
[352281170,1739026254976,-706.06,0.00010409,2]
[352281171,1739026254986,-500.0,0.00010409,2]
[352281172,1739026254995,-500.0,0.00010409,2]
[352281173,1739026255005,-500.0,0.00010409,2]
[352281174,1739026255015,-500.0,0.00010409,2]
[352281175,1739026255024,-500.0,0.00010409,2]
[352281176,1739026255033,-500.0,0.00010409,2]
[352281177,1739026255043,-906.28,0.00010409,2]
[352281178,1739026255052,-282.4370396,0.00010409,2]
[352281179,1739026255062,-500.0,0.00010409,2]
[352281180,1739026255071,-500.0,0.00010409,2]
[352281181,1739026255080,-500.0,0.00010409,2]
[352281182,1739026255090,-1048.24,0.00010409,2]
[352281183,1739026255100,-507.92764979,0.00010409,2]
[352281184,1739026255110,-173.51423332,0.00010409,2]
[352281185,1739026255119,-500.0,0.00010409,2]
[352281186,1739026255129,-500.0,0.00010409,2]
[352281187,1739026255138,-500.0,0.00010409,2]
[352281188,1739026255148,-500.0,0.00010409,2]
[352281189,1739026255158,-512.4,0.00010409,2]
[352281190,1739026255167,-500.0,0.00010409,2]
[352281191,1739026255176,-500.0,0.00010409,2]
[352281192,1739026255188,-1196.56,0.00010409,2]
[352281193,1739026255198,-500.0,0.00010409,2]
[352281194,1739026255208,-500.0,0.00010409,2]
[352281195,1739026255218,-1031.91,0.00010409,2]
[352281196,1739026255227,-500.0,0.00010409,2]
[352281197,1739026255236,-500.0,0.00010409,2]
[352281198,1739026255246,-1022.59,0.00010409,2]
[352281199,1739026255255,-500.0,0.00010409,2]
[352281200,1739026255264,-500.0,0.00010409,2]
[352281201,1739026255274,-910.52,0.00010409,2]
[352281202,1739026255283,-1252.81,0.00010409,2]
[352281203,1739026255293,-500.0,0.00010409,2]
[352281204,1739026255302,-837.81,0.00010409,2]
[352281205,1739026255312,-957.31,0.00010409,2]
[352281206,1739026255321,-500.0,0.00010409,2]
[352281207,1739026255330,-500.0,0.00010409,2]
[352281208,1739026255340,-500.0,0.00010409,2]
[352281209,1739026255350,-500.0,0.00010409,2]
[352281210,1739026255359,-924.72,0.00010409,2]
[352281211,1739026255369,-1083.82,0.00010409,2]
[352281212,1739026255378,-500.0,0.00010409,2]
[352281213,1739026255388,-500.0,0.00010409,2]
[352281214,1739026255398,-500.0,0.00010409,2]
[352281215,1739026255408,-974.06,0.00010409,2]
[352281216,1739026255417,-752.06,0.00010409,2]
[352281217,1739026255427,-500.0,0.00010409,2]
[352281218,1739026255440,-1247.56,0.00010409,2]
[352281219,1739026255450,-8317.82,0.00010409,2]
[352281220,1739026255459,-1421.77,0.00010409,2]
[352281221,1739026255469,-631.34,0.00010409,2]
[352281222,1739026255478,-1072.48,0.00010409,2]
[352281223,1739026255488,-1505.97,0.00010409,2]
[352281224,1739026255497,-500.0,0.00010409,2]
[352281225,1739026255507,-1102.95,0.00010409,2]
[352281226,1739026255517,-554.7,0.00010409,2]
[352281227,1739026255527,-1575.94,0.00010409,2]
[352281228,1739026255536,-1317.01,0.00010409,2]
[352281229,1739026255546,-1383.41,0.00010409,2]
[352281230,1739026255556,-836.92,0.00010409,2]
[352281231,1739026255566,-836.54,0.00010409,2]
[352281232,1739026255576,-2825.43,0.00010409,2]
[352281233,1739026255585,-801.18,0.00010409,2]
[352281234,1739026255595,-1691.58,0.00010409,2]
[352281235,1739026255605,-702.12,0.00010409,2]
[352281236,1739026255615,-2689.37,0.00010409,2]
[352281237,1739026255624,-502.90108215,0.00010409,2]
[352281238,1739026255634,-500.0,0.00010409,2]
[352281239,1739026255643,-1106.63,0.00010409,2]
[352281240,1739026255653,-7893.9,0.00010409,2]
[352281241,1739026255662,-500.0,0.00010409,2]
[352281242,1739026255671,-1323.78,0.00010409,2]
[352281243,1739026255681,-1253.18,0.00010409,2]
[352281244,1739026255691,-3271.27,0.00010409,2]
[352281245,1739026255700,-1229.47,0.00010409,2]
[352281246,1739026255709,-1507.29,0.00010409,2]
[352281247,1739026255719,-500.0,0.00010409,2]
[352281248,1739026255729,-1826.28,0.00010409,2]
[352281249,1739026255738,-514.29,0.00010409,2]
[352281250,1739026255748,-684.67,0.00010409,2]
[352281251,1739026255758,-2570.97,0.00010409,2]
[352281252,1739026255767,-1173.27,0.00010409,2]
[352281253,1739026255777,-1229.47,0.00010409,2]
[352281254,1739026255790,-2260.43,0.00010409,2]
[352281255,1739026255800,-983.42,0.00010409,2]
[352281256,1739026255811,-2002.58,0.00010409,2]
[352281257,1739026256029,-500.0,0.00010409,2]
[352281258,1739026256038,-1205.81,0.00010409,2]
[352281259,1739026256047,-1057.86,0.00010409,2]
[352281260,1739026256057,-1006.09,0.00010409,2]
[352281261,1739026256066,-1671.41,0.00010409,2]
[352281262,1739026256075,-1803.33,0.00010409,2]
[352281263,1739026256084,-500.0,0.00010409,2]
[352281264,1739026256093,-1909.26,0.00010409,2]
[352281265,1739026256103,-2641.56,0.00010409,2]
[352281266,1739026256112,-1507.28,0.00010409,2]
[352281267,1739026256121,-500.0,0.00010409,2]
[352281268,1739026256130,-500.0,0.00010409,2]
[352281269,1739026256139,-500.0,0.00010409,2]
[352281270,1739026256148,-500.0,0.00010409,2]
[352281271,1739026256158,-500.0,0.00010409,2]
[352281272,1739026256167,-500.0,0.00010409,2]
[352281273,1739026256176,-3734.27,0.00010409,2]
[352281274,1739026256187,-513.48,0.00010409,2]
[352281275,1739026256196,-1611.15,0.00010409,2]
[352281276,1739026256205,-891.2,0.00010409,2]
[352281277,1739026256214,-2216.99,0.00010409,2]
[352281278,1739026256223,-1246.73,0.00010409,2]
[352281279,1739026256233,-500.0,0.00010409,2]
[352281280,1739026256242,-764.88,0.00010409,2]
[352281281,1739026256251,-1984.07,0.00010409,2]
[352281282,1739026256260,-957.88,0.00010409,2]
[352281283,1739026256269,-500.0,0.00010409,2]
[352281284,1739026256279,-2573.5,0.00010409,2]
[352281285,1739026256288,-1842.63,0.00010409,2]
[352281286,1739026256297,-1514.24,0.00010409,2]
[352281287,1739026256307,-2211.87,0.00010409,2]
[352281288,1739026256316,-2441.09,0.00010409,2]
[352281289,1739026256325,-657.03,0.00010409,2]
[352281290,1739026256334,-2415.47,0.00010409,2]
[352281291,1739026256344,-1133.49,0.00010409,2]
[352281292,1739026256353,-1000.0,0.00010409,2]
[352281293,1739026256363,-530.45,0.00010409,2]
[352281294,1739026256372,-1151.35,0.00010409,2]
[352281295,1739026256382,-500.0,0.00010409,2]
[352281296,1739026256391,-3467.02,0.00010409,2]
[352281297,1739026256401,-1453.75,0.00010409,2]
[352281298,1739026256410,-965.47,0.00010409,2]
[352281299,1739026256420,-1424.71,0.00010409,2]
[352281300,1739026256429,-1182.56,0.00010409,2]
[352281301,1739026256440,-500.0,0.00010409,2]
[352281302,1739026256449,-995.21,0.00010409,2]
[352281303,1739026256458,-794.79,0.00010409,2]
[352281304,1739026256468,-1067.88,0.00010409,2]
[352281305,1739026256477,-2227.08,0.00010409,2]
[352281306,1739026256486,-500.0,0.00010409,2]
[352281307,1739026256495,-2566.83,0.00010409,2]
[352281308,1739026256505,-2497.06,0.00010409,2]
[352281309,1739026256514,-520.29,0.00010409,2]
[352281310,1739026256523,-759.9,0.00010409,2]
[352281311,1739026256533,-690.89,0.00010409,2]
[352281312,1739026256543,-970.99,0.00010409,2]
[352281313,1739026256552,-2478.07,0.00010409,2]
[352281314,1739026256561,-500.0,0.00010409,2]
[352281315,1739026256570,-1873.84,0.00010409,2]
[352281316,1739026256580,-849.37,0.00010409,2]
[352281317,1739026256589,-1551.26,0.00010409,2]
[352281318,1739026256598,-507.02,0.00010409,2]
[352281319,1739026256608,-500.0,0.00010409,2]
[352281320,1739026256617,-536.6175742,0.00010409,2]
[352281321,1739026256627,-968.16,0.00010409,2]
[352281322,1739026256636,-500.0,0.0001041,2]
[352281323,1739026256645,-500.0,0.0001041,2]
[352281324,1739026256655,-500.0,0.0001041,2]
[352281325,1739026256664,-500.0,0.0001041,2]
[352281326,1739026256672,-500.0,0.0001041,2]
[352281327,1739026256684,-500.0,0.0001041,2]
[352281328,1739026256693,-500.0,0.0001041,2]
[352281329,1739026256703,-500.0,0.0001041,2]
[352281330,1739026256713,-500.0,0.0001041,2]
[352281331,1739026256723,-500.0,0.0001041,2]
[352281332,1739026256732,-500.0,0.0001041,2]
[352281333,1739026256741,-500.0,0.0001041,2]
[352281334,1739026256750,-500.0,0.0001041,2]
[352281335,1739026256760,-500.0,0.0001041,2]
[352281336,1739026256769,-627.24139884,0.0001041,2]
[352281337,1739026256779,-500.0,0.0001041,2]
[352281338,1739026256790,-500.0,0.0001041,2]
[352281339,1739026256800,-500.0,0.0001041,2]
[352281340,1739026256810,-500.0,0.0001041,2]
[352281341,1739026256819,-500.0,0.0001041,2]
[352281342,1739026256830,-1406.72,0.0001041,2]
[352281343,1739026256840,-606.94,0.0001041,2]
[352281344,1739026256849,-427.90541059,0.0001041,2]
[352281345,1739026256860,-500.0,0.0001041,2]
[352281346,1739026256869,-500.0,0.0001041,2]
[352281347,1739026256878,-500.0,0.0001041,2]
[352281348,1739026256887,-599.03,0.0001041,2]
[352281349,1739026256898,-500.0,0.0001041,2]
[352281350,1739026256907,-500.0,0.0001041,2]
[352281351,1739026256916,-500.0,0.0001041,2]
[352281352,1739026256927,-500.0,0.0001041,2]
[352281353,1739026256937,-500.0,0.0001041,2]
[352281354,1739026256946,-500.0,0.0001041,2]
[352281355,1739026256955,-500.0,0.0001041,2]
[352281356,1739026256964,-500.0,0.0001041,2]
[352281357,1739026256973,-500.0,0.0001041,2]
[352281358,1739026256982,-500.0,0.0001041,2]
[352281359,1739026256991,-500.0,0.0001041,2]
[352281360,1739026257001,-500.0,0.0001041,2]
[352281361,1739026257011,-500.0,0.0001041,2]
[352281362,1739026257020,-585.91,0.0001041,2]
[352281363,1739026257030,-500.0,0.0001041,2]
[352281364,1739026257039,-895.43,0.0001041,2]
[352281365,1739026257048,-667.16,0.0001041,2]
[352281366,1739026257058,-500.0,0.0001041,2]
[352281367,1739026257066,-500.0,0.0001041,2]
[352281368,1739026257075,-500.0,0.0001041,2]
[352281369,1739026257086,-1122.19,0.0001041,2]
[352281370,1739026257102,-1100.4,0.0001041,2]
[352281371,1739026257112,-500.0,0.0001041,2]
[352281372,1739026257121,-500.0,0.0001041,2]
[352281373,1739026257132,-500.0,0.0001041,2]
[352281374,1739026257143,-505.22067381,0.0001041,2]
[352281375,1739026257152,-500.0,0.0001041,2]
[352281376,1739026257161,-500.0,0.0001041,2]
[352281377,1739026257171,-821.72,0.0001041,2]
[352281378,1739026257182,-500.0,0.0001041,2]
[352281379,1739026257192,-861.29,0.0001041,2]
[352281380,1739026257201,-920.67,0.0001041,2]
[352281381,1739026257211,-500.0,0.0001041,2]
[352281382,1739026257221,-579.08,0.0001041,2]
[352281383,1739026257230,-500.0,0.0001041,2]
[352281384,1739026257240,-500.0,0.0001041,2]
[352281385,1739026257250,-772.46,0.0001041,2]
[352281386,1739026257259,-500.0,0.0001041,2]
[352281387,1739026257269,-500.0,0.0001041,2]
[352281388,1739026257279,-601.24,0.0001041,2]
[352281389,1739026257290,-500.0,0.0001041,2]
[352281390,1739026257300,-500.0,0.0001041,2]
[352281391,1739026257310,-500.0,0.0001041,2]
[352281392,1739026257319,-500.0,0.0001041,2]
[352281393,1739026257329,-500.0,0.0001041,2]
[352281394,1739026257339,-500.0,0.0001041,2]
[352281395,1739026257349,-500.0,0.0001041,2]
[352281396,1739026257359,-500.0,0.0001041,2]
[352281397,1739026257369,-500.0,0.0001041,2]
[352281398,1739026257378,-500.0,0.0001041,2]
[352281399,1739026257388,-528.45,0.0001041,2]
[352281400,1739026257398,-500.0,0.0001041,2]
[352281401,1739026257407,-500.0,0.0001041,2]
[352281402,1739026257417,-500.0,0.0001041,2]
[352281403,1739026257427,-500.0,0.0001041,2]
[352281404,1739026257437,-500.0,0.0001041,2]
[352281405,1739026257447,-500.0,0.0001041,2]
[352281406,1739026257456,-500.0,0.0001041,2]
[352281407,1739026257466,-500.0,0.0001041,2]
[352281408,1739026257475,-500.0,0.0001041,2]
[352281409,1739026257484,-500.0,0.0001041,2]
[352281410,1739026257493,-500.0,0.0001041,2]
[352281411,1739026257503,-500.0,0.0001041,2]
[352281412,1739026257512,-500.0,0.0001041,2]
[352281413,1739026257521,-500.0,0.0001041,2]
[352281414,1739026257531,-500.0,0.0001041,2]
[352281415,1739026257540,-570.74,0.0001041,2]
[352281416,1739026257549,-500.0,0.0001041,2]
[352281417,1739026257558,-930.88,0.0001041,2]
[352281418,1739026257567,-1107.01,0.0001041,2]
[352281419,1739026257576,-500.0,0.0001041,2]
[352281420,1739026257586,-500.0,0.0001041,2]
[352281421,1739026257595,-500.0,0.0001041,2]
[352281422,1739026257604,-500.0,0.0001041,2]
[352281423,1739026257614,-500.0,0.0001041,2]
[352281424,1739026257623,-500.0,0.0001041,2]
[352281425,1739026257632,-500.0,0.0001041,2]
[352281426,1739026257642,-785.72,0.0001041,2]
[352281427,1739026257651,-500.0,0.0001041,2]
[352281428,1739026257660,-592.81,0.0001041,2]
[352281429,1739026257669,-500.0,0.0001041,2]
[352281430,1739026257678,-500.0,0.0001041,2]
[352281431,1739026257688,-315.32529911,0.0001041,2]
[352281432,1739026257697,-500.0,0.0001041,2]
[352281433,1739026257707,-500.0,0.0001041,2]
[352281434,1739026257717,-500.0,0.0001041,2]
[352281435,1739026257726,-500.0,0.0001041,2]
[352281436,1739026257735,-503.07,0.0001041,2]
[352281437,1739026257744,-500.0,0.0001041,2]
[352281438,1739026257753,-500.0,0.0001041,2]
[352281439,1739026257762,-599.99700733,0.0001041,2]
[352281440,1739026257771,-500.0,0.0001041,2]
[352281441,1739026257781,-1069.38,0.0001041,2]
[352281442,1739026257793,-500.0,0.0001041,2]
[352281443,1739026257803,-500.0,0.0001041,2]
[352281444,1739026257813,-855.76,0.0001041,2]
[352281445,1739026257823,-500.0,0.0001041,2]
[352281446,1739026257832,-500.0,0.0001041,2]
[352281447,1739026257842,-261.96318208,0.0001041,2]
[352281448,1739026257851,-500.0,0.0001041,2]
[352281449,1739026257863,-500.0,0.0001041,2]
[352281450,1739026257871,-500.0,0.0001041,2]
[352281451,1739026257880,-500.0,0.0001041,2]
[352281452,1739026257889,-500.0,0.0001041,2]
[352281453,1739026257900,-500.0,0.0001041,2]
[352281454,1739026257909,-1052.13,0.0001041,2]
[352281455,1739026257918,-500.0,0.0001041,2]
[352281456,1739026257927,-217.01707151,0.0001041,2]
[352281457,1739026257937,-500.0,0.0001041,2]
[352281458,1739026257946,-934.78,0.0001041,2]
[352281459,1739026257956,-500.0,0.0001041,2]
[352281460,1739026257966,-500.0,0.0001041,2]
[352281461,1739026257975,-500.0,0.0001041,2]
[352281462,1739026257985,-525.81851231,0.0001041,2]
[352281463,1739026257995,-500.0,0.0001041,2]
[352281464,1739026258005,-500.0,0.0001041,2]
[352281465,1739026258014,-2206.29,0.0001041,2]
[352281466,1739026258023,-528.4,0.0001041,2]
[352281467,1739026258034,-1147.02,0.0001041,2]
[352281468,1739026258045,-500.0,0.0001041,2]
[352281469,1739026258055,-2642.41,0.0001041,2]
[352281470,1739026258064,-500.0,0.0001041,2]
[352281471,1739026258075,-500.0,0.0001041,2]
[352281472,1739026258085,-500.0,0.0001041,2]
[352281473,1739026258094,-972.34,0.0001041,2]
[352281474,1739026258103,-2127.470822,0.0001041,2]
[352281475,1739026258113,-552.39,0.0001041,2]
[352281476,1739026258122,-500.0,0.0001041,2]
[352281477,1739026258131,-500.0,0.0001041,2]
[352281478,1739026258140,-1133.72,0.0001041,2]
[352281479,1739026258150,-855.37,0.0001041,2]
[352281480,1739026258160,-155.619165,0.0001041,2]
[352281481,1739026258170,-278.51040467,0.0001041,2]
[352281482,1739026258179,-500.0,0.0001041,2]
[352281483,1739026258189,-1695.0,0.0001041,2]
[352281484,1739026258198,-500.0,0.0001041,2]
[352281485,1739026258208,-626.07,0.0001041,2]
[352281486,1739026258218,-500.0,0.0001041,2]
[352281487,1739026258228,-500.0,0.0001041,2]
[352281488,1739026258242,-1409.43,0.0001041,2]
[352281489,1739026258255,-1046.27,0.0001041,2]
[352281490,1739026258271,-562.81148069,0.0001041,2]
[352281491,1739026258285,-500.0,0.0001041,2]
[352281492,1739026258297,-502.04143773,0.0001041,2]
[352281493,1739026258310,-500.0,0.0001041,2]
[352281494,1739026258324,-500.0,0.0001041,2]
[352281495,1739026258336,-1819.147157,0.0001041,2]
[352281496,1739026258348,-1167.45,0.0001041,2]
[352281497,1739026258362,-500.0,0.0001041,2]
[352281498,1739026258375,-500.0,0.0001041,2]
[352281499,1739026258389,-1148.79,0.0001041,2]
[352281500,1739026258402,-500.0,0.0001041,2]
[352281501,1739026258414,-833.83,0.0001041,2]
[352281502,1739026258424,-1505.15,0.0001041,2]
[352281503,1739026258437,-500.0,0.0001041,2]
[352281504,1739026258450,-500.0,0.0001041,2]
[352281505,1739026258463,-986.26,0.0001041,2]
[352281506,1739026258475,-500.0,0.0001041,2]
[352281507,1739026258488,-305.48,0.0001041,2]
[352281508,1739026258501,-589.99464876,0.0001041,2]
[352281509,1739026258514,-1777.8,0.0001041,2]
[352281510,1739026258527,-500.0,0.0001041,2]
[352281511,1739026258539,-1256.33,0.0001041,2]
[352281512,1739026258553,-512.59283199,0.0001041,2]
[352281513,1739026258566,-582.44,0.0001041,2]
[352281514,1739026258578,-500.0,0.0001041,2]
[352281515,1739026258589,-500.0,0.0001041,2]
[352281516,1739026258602,-500.0,0.0001041,2]
[352281517,1739026258614,-1138.32,0.0001041,2]
[352281518,1739026258626,-500.0,0.0001041,2]
[352281519,1739026258639,-2266.83,0.0001041,2]
[352281520,1739026258651,-1649.27,0.0001041,2]
[352281521,1739026258663,-500.0,0.0001041,2]
[352281522,1739026258675,-500.0,0.0001041,2]
[352281523,1739026258686,-500.0,0.0001041,2]
[352281524,1739026258696,-500.0,0.0001041,2]
[352281525,1739026258707,-1948.92,0.0001041,2]
[352281526,1739026258720,-5772.15,0.0001041,2]
[352281527,1739026258735,-500.0,0.0001041,2]
[352281528,1739026258747,-2764.98,0.0001041,2]
[352281529,1739026258758,-500.0,0.0001041,2]
[352281530,1739026258769,-500.0,0.0001041,2]
[352281531,1739026258779,-352.45690977,0.0001041,2]
[352281532,1739026258792,-4071.61,0.0001041,2]
[352281533,1739026258805,-500.0,0.0001041,2]
[352281534,1739026258817,-556.12,0.0001041,2]
[352281535,1739026258828,-1437.93,0.0001041,2]
[352281536,1739026258839,-500.0,0.0001041,2]
[352281537,1739026258850,-238.52351537,0.0001041,2]
[352281538,1739026258862,-500.0,0.0001041,2]
[352281539,1739026258873,-500.0,0.0001041,2]
[352281540,1739026258884,-500.0,0.0001041,2]
[352281541,1739026258896,-1065.03,0.0001041,2]
[352281542,1739026258908,-500.0,0.0001041,2]
[352281543,1739026258920,-856.9,0.0001041,2]
[352281544,1739026258932,-500.0,0.0001041,2]
[352281545,1739026258942,-2557.02,0.0001041,2]
[352281546,1739026258955,-500.0,0.0001041,2]
[352281547,1739026258967,-2691.93,0.0001041,2]
[352281548,1739026258979,-1075.04,0.0001041,2]
[352281549,1739026258989,-2127.64,0.0001041,2]
[352281550,1739026259003,-1562.42,0.0001041,2]
[352281551,1739026259014,-507.46219776,0.0001041,2]
[352281552,1739026259027,-357.57270129,0.0001041,2]
[352281553,1739026259037,-500.0,0.0001041,2]
[352281554,1739026259049,-500.0,0.0001041,2]
[352281555,1739026259061,-500.0,0.0001041,2]
[352281556,1739026259072,-1254.87,0.0001041,2]
[352281557,1739026259084,-1365.08,0.0001041,2]
[352281558,1739026259095,-625.68,0.0001041,2]
[352281559,1739026259108,-505.16399582,0.0001041,2]
[352281560,1739026259119,-935.0,0.00010435,2]
[352281561,1739026259131,-163.67677193,0.00010457,2]
[352281562,1739026259142,-500.0,0.0001052,2]
[352281563,1739026259154,-500.0,0.00010521,2]
[352281564,1739026259166,-500.0,0.00010521,2]
[352281565,1739026259178,-500.0,0.00010521,2]
[352281566,1739026259190,-1022.0,0.00010521,2]
[352281567,1739026259201,-500.0,0.00010521,2]
[352281568,1739026259213,-986.57,0.00010521,2]
[352281569,1739026259227,-500.0,0.00010521,2]
[352281570,1739026259238,-505.84,0.00010521,2]
[352281571,1739026259249,-500.0,0.00010521,2]
[352281572,1739026259261,-500.0,0.00010521,2]
[352281573,1739026259272,-500.0,0.00010521,2]
[352281574,1739026259283,-864.72,0.00010521,2]
[352281575,1739026259295,-500.0,0.00010521,2]
[352281576,1739026259307,-500.0,0.00010521,2]
[352281577,1739026259318,-500.0,0.00010521,2]
[352281578,1739026259329,-500.0,0.00010521,2]
[352281579,1739026259345,-578.86,0.00010521,2]
[352281580,1739026259356,-501.84404982,0.00010521,2]
[352281581,1739026259367,-555.84,0.00010521,2]
[352281582,1739026259379,-500.0,0.00010521,2]
[352281583,1739026259390,-1000.0,0.00010542,2]
[352281584,1739026259402,-500.0,0.00010546,2]
[352281585,1739026259413,-656.65,0.00010546,2]
[352281586,1739026259424,-925.49,0.00010546,2]
[352281587,1739026259435,-500.0,0.00010546,2]
[352281588,1739026259446,-774.68,0.00010546,2]
[352281589,1739026259456,-500.0,0.00010546,2]
[352281590,1739026259475,-500.0,0.00010546,2]
[352281591,1739026259487,-1122.18,0.00010546,2]
[352281592,1739026259498,-598.25,0.00010546,2]
[352281593,1739026259511,-500.0,0.00010546,2]
[352281594,1739026259522,-953.88,0.00010546,2]
[352281595,1739026259533,-500.0,0.00010546,2]
[352281596,1739026259545,-500.0,0.00010546,2]
[352281597,1739026259556,-500.0,0.00010546,2]
[352281598,1739026259567,-500.0,0.00010546,2]
[352281599,1739026259578,-500.0,0.00010546,2]
[352281600,1739026259590,-500.0,0.00010546,2]
[352281601,1739026259602,-757.38,0.00010546,2]
[352281602,1739026259613,-588.90990675,0.00010546,2]
[352281603,1739026259624,-706.06,0.00010546,2]
[352281604,1739026259635,-500.0,0.00010546,2]
[352281605,1739026259646,-500.0,0.00010546,2]